bitfinex/quotes_ETHUSD_20240816
["timestamp","ask_amount","ask_price","bid_price","bid_amount"]
[1723787418594,0.06227586,2602.1,2602.0,1.328]
[1723787418751,0.06227586,2602.1,2602.0,6.542074]
[1723787418955,7.44,2602.8,2602.3,4.69421]
[1723787419267,3.99426773,2603.8,2602.6,3.63337]
[1723787419268,4.59848,2603.3,2602.6,3.63337]
[1723787419465,2.30478,2603.3,2602.7,0.363337]
[1723787419789,2.30478,2603.3,2602.8,36.328]
[1723787419955,2.3046,2603.5,2602.8,36.328]
[1723787420152,2.3046,2603.5,2602.8,38.6445]
[1723787420997,2.3046,2603.5,2602.8,40.9497]
[1723787421152,2.30468,2603.4,2602.8,39.6217]
[1723787421358,2.30477,2603.3,2602.8,35.0]
[1723787421709,3.63277,2603.3,2602.8,35.0]
[1723787421854,2.30495,2603.1,2602.8,35.0]
[1723787422059,2.30495,2603.1,2602.2,4.69981]
[1723787422060,2.30511,2603.0,2602.2,5.50307387]
[1723787422289,2.30511,2603.0,2602.3,3.33963522]
[1723787422491,2.30511,2603.0,2602.2,5.50307387]
[1723787422698,2.30533,2602.7,2602.0,2.30591]
[1723787422856,2.30533,2602.7,2602.0,4.30987616]
[1723787423055,4.32217315,2602.9,2602.2,2.30573]
[1723787423056,2.30515,2602.9,2602.2,2.30573]
[1723787423296,2.01702315,2603.0,2602.3,2.30557]
[1723787423297,2.30503,2603.0,2602.3,2.30557]
[1723787423592,2.30503,2603.0,2602.2,37.30573]
[1723787423753,5.00025852,2603.0,2602.2,37.30573]
[1723787423952,2.98437532,2603.0,2602.2,37.30573]
[1723787424391,5.00025852,2603.0,2602.3,2.30564]
[1723787424753,2.98437532,2603.0,2602.3,2.30564]
[1723787424965,2.98437532,2603.0,2602.4,2.30554]
[1723787427453,19.77,2603.1,2602.4,2.4715]
[1723787427650,2.0158832,2603.4,2602.8,2.30512]
[1723787427902,4.3204732,2603.5,2602.9,0.230512]
[1723787428087,2.30459,2603.5,2602.8,4.77662]
[1723787428400,2.30459,2603.5,2602.9,2.3051]
[1723787428607,3.19778832,2603.5,2602.9,2.3051]
[1723787429059,3.19778832,2603.5,2602.8,2.4715]
[1723787429060,2.01428473,2603.8,2603.1,2.30487]
[1723787429402,2.01428473,2603.8,2603.0,35.0]
[1723787429403,2.30432,2603.8,2603.2,2.30484]
[1723787429604,2.97624347,2603.8,2603.2,2.30484]
[1723787431966,4.31843473,2604.0,2603.3,2.4156]
[1723787432157,2.41714167,2604.3,2603.4,2.30461]
[1723787432158,2.30395,2604.3,2603.4,2.30461]
[1723787432404,6.59790473,2604.5,2603.7,2.30441]
[1723787432620,2.96358047,2604.4,2603.7,2.30441]
[1723787433189,2.30388,2604.3,2603.5,37.30458]
[1723787433581,2.30388,2604.3,2603.6,2.30447]
[1723787434275,0.10177451,2604.2,2603.6,2.30447]
[1723787434612,2.30388,2604.3,2603.6,2.30447]
[1723787434769,4.5836,2604.5,2603.7,2.3044]
[1723787434965,0.10177451,2604.2,2603.7,4.6968]
[1723787435187,2.30389,2604.3,2603.7,4.6968]
[1723787435888,0.10203068,2604.2,2603.7,4.6968]
[1723787436086,2.762159,2604.4,2603.7,4.6968]
[1723787436277,0.10203068,2604.3,2603.7,4.6968]
[1723787436865,0.10203068,2604.3,2603.8,0.07680492]
[1723787437073,0.10203068,2604.3,2603.9,2.30423]
[1723787437263,2.30371,2604.5,2603.8,2.55117049]
[1723787437484,0.10203068,2604.4,2603.9,2.30423]
[1723787437679,2.30363,2604.6,2603.9,2.3810299]
[1723787437882,0.10203068,2604.5,2603.9,2.3810299]
[1723787438424,2.40574068,2604.5,2603.8,2.30425]
[1723787438570,0.10203068,2604.5,2603.8,2.30425]
[1723787438765,0.10203068,2604.5,2604.0,2.30414]
[1723787439404,2.30385,2604.4,2603.7,2.3924]
[1723787439869,2.40599714,2604.3,2603.7,2.3924]
[1723787440106,2.40599714,2604.3,2603.4,4.66855]
[1723787440107,2.30397,2604.2,2603.4,4.66855]
[1723787440348,2.30405,2604.1,2603.4,4.66855]
[1723787440507,2.40616714,2604.1,2603.4,39.66855]
[1723787440707,2.40616714,2604.1,2603.4,4.66855]
[1723787440708,2.30405,2604.1,2603.4,4.66855]
[1723787441063,0.57313085,2604.0,2603.4,4.66855]
[1723787442549,0.10211714,2604.0,2603.5,2.30452]
[1723787442846,0.10211714,2604.0,2603.6,2.30449]
[1723787443011,2.30397,2604.2,2603.6,2.30449]
[1723787443350,4.60768,2604.4,2603.7,2.30441]
[1723787443562,0.10198411,2604.1,2603.8,2.30432]
[1723787443844,7.44,2604.5,2603.9,2.30414]
[1723787444045,0.10198411,2604.0,2603.9,2.30414]
[1723787444221,7.44,2604.5,2603.9,2.30414]
[1723787444419,0.10198078,2604.0,2603.9,2.30414]
[1723787444623,9.632363,2604.5,2603.9,2.30414]
[1723787444823,0.10198078,2604.0,2603.9,2.30414]
[1723787445022,9.632363,2604.5,2603.9,2.30414]
[1723787445509,0.10198078,2604.4,2603.9,2.30414]
[1723787445706,0.10198078,2604.4,2603.8,37.30432]
[1723787445707,1.53614916,2604.4,2603.8,37.30432]
[1723787446452,1.53614916,2604.4,2603.8,37.30425]
[1723787446453,3.93714916,2604.4,2603.8,37.30425]
[1723787447321,3.93714916,2604.4,2603.8,2.30425]
[1723787447669,1.58732222,2604.3,2603.8,2.30425]
[1723787447952,0.10202401,2604.2,2603.8,2.30425]
[1723787448324,1.58732222,2604.3,2603.8,2.30425]
[1723787448539,0.10202401,2604.1,2603.8,2.30425]
[1723787448752,2.401,2604.4,2603.8,2.30425]
[1723787448936,0.10202401,2604.0,2603.8,2.30425]
[1723787449109,3.845834,2604.4,2603.8,2.30425]
[1723787449315,0.10202401,2604.3,2603.7,2.3977]
[1723787449514,3.77513381,2604.3,2603.7,2.3977]
[1723787449713,3.77513381,2604.3,2603.7,4.7021]
[1723787450114,3.77513381,2604.3,2603.7,2.3977]
[1723787451012,1.47119381,2604.3,2603.7,2.3977]
[1723787451211,0.10202401,2604.3,2603.8,2.30426]
[1723787452254,0.10202401,2604.3,2603.8,2.30425]
[1723787453230,0.10202401,2604.3,2603.9,2.30417]
[1723787453626,9.74371,2604.5,2603.9,2.30417]
[1723787453852,0.1022536,2604.2,2603.9,2.30417]
[1723787454058,3.735395,2604.4,2603.7,2.3977]
[1723787454273,0.1022536,2604.1,2603.8,2.30431]
[1723787454552,0.10226025,2604.0,2603.8,2.30431]
[1723787454919,3.735395,2604.4,2603.8,2.30431]
[1723787455139,1.21981969,2604.3,2603.8,2.30431]
[1723787456757,1.21981969,2604.3,2603.8,37.30431]
[1723787457857,1.21981969,2604.3,2603.8,2.30431]
[1723787461382,0.10228019,2604.3,2603.8,2.30431]
[1723787461667,0.10228019,2604.3,2603.8,37.30431]
[1723787461978,2.3681,2604.2,2603.5,2.3625]
[1723787462272,2.55115802,2604.1,2603.4,2.30461]
[1723787462480,2.65338832,2604.1,2603.5,35.0]
[1723787464237,2.65338832,2604.1,2603.5,37.30456]
[1723787464846,2.4063503,2604.1,2603.5,37.30456]
[1723787465675,2.4063503,2604.1,2603.6,2.30449]
[1723787466138,0.1022303,2604.1,2603.6,2.30449]
[1723787467296,0.1022303,2604.1,2603.9,2.30416]
[1723787467587,12.07431,2604.5,2604.0,0.230416]
[1723787467762,0.09981051,2604.0,2603.7,2.30438]
[1723787467968,2.4539,2604.0,2603.5,2.30456]
[1723787468168,0.09981051,2603.9,2603.3,5.00068847]
[1723787468343,2.40407051,2603.9,2603.3,5.00068847]
[1723787468738,2.40407051,2603.9,2603.3,0.40148847]
[1723787468739,2.4539,2603.8,2603.3,0.40148847]
[1723787468938,2.4539,2603.8,2602.9,37.30508]
[1723787468939,2.30453,2603.6,2602.9,2.30505]
[1723787469350,2.4539,2603.7,2603.0,2.30494]
[1723787469351,0.09977724,2603.5,2603.0,2.30494]
[1723787469584,0.09977724,2603.5,2603.2,4.59929]
[1723787469784,2.4539,2603.7,2603.2,4.59929]
[1723787469984,0.0996608,2603.4,2603.3,2.30476]
[1723787470196,2.30418,2604.0,2603.3,2.30476]
[1723787470504,3.010386,2604.0,2603.3,2.30476]
[1723787470648,0.09954433,2603.9,2603.3,2.30476]
[1723787471747,2.40378433,2603.9,2603.2,4.59929]
[1723787472179,2.4913,2603.7,2603.2,2.30479]
[1723787472492,2.4913,2603.7,2603.0,4.6245]
[1723787472493,2.4040377,2603.6,2603.0,4.6245]
[1723787472802,2.4040377,2603.6,2603.0,2.305]
[1723787473346,2.4040377,2603.6,2602.8,2.81900282]
[1723787473550,5.48272617,2603.6,2602.9,2.30511]
[1723787474497,3.17814617,2603.6,2602.9,2.30511]
[1723787474789,3.17814617,2603.6,2602.9,4.61015]
[1723787475098,0.0995277,2603.6,2602.8,2.81900282]
[1723787475306,2.30486,2603.2,2602.5,4.71145]
[1723787475468,4.67534,2603.1,2602.5,4.71145]
[1723787475799,4.77467137,2603.1,2602.5,4.71145]
[1723787476093,2.46973137,2603.1,2602.5,4.71145]
[1723787476313,2.46973137,2603.1,2602.3,2.30563]
[1723787476314,2.30503,2603.0,2602.3,2.30563]
[1723787476592,0.09919157,2602.9,2602.3,2.30563]
[1723787476803,0.09919157,2602.9,2602.2,2.3566]
[1723787477098,0.62439964,2602.9,2602.2,2.3566]
[1723787477450,2.30532,2602.7,2602.2,0.40173028]
[1723787477697,2.30532,2602.7,2602.0,2.30591]
[1723787477861,0.09885193,2602.6,2602.0,2.30591]
[1723787478702,0.09885193,2602.6,2602.1,2.30582]
[1723787478904,4.58332,2602.8,2602.1,2.30582]
[1723787479206,0.09877866,2602.7,2602.1,2.30582]
[1723787482805,0.09877866,2602.7,2601.9,5.06432262]
[1723787482806,0.09877866,2602.7,2602.0,2.2557]
[1723787482982,0.09877866,2602.7,2602.4,2.2557]
[1723787483204,2.30512,2602.9,2602.4,2.2557]
[1723787483377,0.09877866,2602.6,2602.3,2.30558]
[1723787483702,0.09877866,2602.5,2602.3,2.30558]
[1723787483888,2.997366,2602.9,2602.3,2.30558]
[1723787484071,0.09877866,2602.8,2602.3,2.30558]
[1723787485210,0.09877866,2602.8,2602.5,2.30546]
[1723787485500,4.70877,2603.2,2602.5,2.30546]
[1723787485704,0.09880533,2603.1,2602.5,2.30546]
[1723787485911,0.09880533,2603.1,2602.5,4.61087]
[1723787486062,0.09880533,2603.1,2602.5,2.30541]
[1723787486398,0.57956286,2603.1,2602.5,2.30541]
[1723787489210,0.57956286,2603.1,2602.6,2.3003]
[1723787489423,0.09880533,2603.1,2602.7,2.30523]
[1723787489738,2.30477,2603.3,2602.7,2.30523]
[1723787489940,0.0989585,2603.2,2602.7,2.30523]
[1723787490533,4.60943,2603.4,2602.7,2.30523]
[1723787490735,0.8060015,2603.3,2602.7,2.30523]
[1723787490894,3.1108115,2603.3,2602.7,2.30523]
[1723787492596,2.30486,2603.2,2602.6,2.3003]
[1723787493034,0.09899514,2603.1,2602.6,2.3003]
[1723787493234,2.454,2603.0,2602.5,2.30541]
[1723787493709,0.0990251,2602.9,2602.5,2.30541]
[1723787494025,0.0990251,2602.9,2602.5,4.79091]
[1723787494199,0.0990251,2602.9,2602.2,2.30572]
[1723787494403,4.75909,2603.0,2602.4,2.30556]
[1723787494642,0.09902177,2602.8,2602.4,4.74856]
[1723787494942,4.75909,2603.0,2602.4,4.74856]
[1723787494943,0.09901179,2602.7,2602.4,4.74856]
[1723787495140,4.75909,2603.0,2602.4,4.74856]
[1723787495310,0.09901179,2602.9,2602.4,4.74856]
[1723787495517,0.09901179,2602.9,2602.4,5.37373044]
[1723787497269,0.09901179,2602.9,2602.6,2.30538]
[1723787497470,4.59742,2603.2,2602.6,2.30538]
[1723787497659,0.09897513,2602.8,2602.6,2.30538]
[1723787497987,4.59742,2603.2,2602.4,5.37373044]
[1723787497988,0.09897846,2602.7,2602.4,5.37373044]
[1723787498203,0.09897846,2602.7,2602.4,7.05405]
[1723787498487,2.30494,2603.1,2602.4,4.74849]
[1723787498648,0.09898179,2602.6,2602.4,4.74849]
[1723787498984,0.09898513,2602.5,2602.4,4.74849]
[1723787499388,2.995176,2603.1,2602.4,4.74849]
[1723787499544,0.09898513,2602.5,2602.4,7.05405]
[1723787499885,4.59742,2603.2,2602.5,2.30539]
[1723787500255,0.09896517,2603.1,2602.5,2.30539]
[1723787500590,0.09896517,2603.1,2602.6,2.30536]
[1723787501458,2.40390517,2603.1,2602.4,7.05402]
[1723787501661,3.10403469,2603.1,2602.4,7.05402]
[1723787501859,2.30504,2603.0,2602.4,4.74849]
[1723787502083,2.30504,2603.0,2602.4,2.30549]
[1723787502284,0.0989918,2602.9,2602.4,2.30549]
[1723787502955,0.0989918,2602.9,2602.5,2.30546]
[1723787503149,0.70012952,2603.1,2602.5,2.30546]
[1723787503349,0.0989685,2603.0,2602.5,2.30546]
[1723787503549,0.62872045,2603.0,2602.5,2.30546]
[1723787504373,0.62872045,2603.0,2602.4,2.30549]
[1723787504985,0.0989685,2603.0,2602.5,2.30541]
[1723787505367,4.59739,2603.2,2602.5,2.30541]
[1723787505589,0.0989685,2602.9,2602.5,2.30541]
[1723787505786,4.59739,2603.2,2602.2,2.86180579]
[1723787505787,4.59739,2603.2,2602.6,4.65177]
[1723787505972,2.30469,2603.4,2602.6,4.65177]
[1723787505973,6.95714,2603.4,2602.8,2.3052]
[1723787506159,7.652854,2603.4,2602.8,2.3052]
[1723787506482,5.348104,2603.4,2602.8,2.3052]
[1723787508355,4.65239,2603.4,2602.8,2.3052]
[1723787508760,4.65239,2603.4,2602.8,2.30513]
[1723787509214,2.30454,2603.6,2603.1,4.74467]
[1723787509215,0.0989685,2603.3,2603.1,4.74467]
[1723787509396,0.0989685,2603.3,2603.1,2.4398]
[1723787509565,5.19788703,2603.8,2603.2,0.474478]
[1723787509566,4.65647,2603.8,2603.2,0.474478]
[1723787509769,2.3521,2603.8,2603.3,2.30476]
[1723787510092,2.3521,2603.8,2603.2,2.30485]
[1723787511109,4.65643,2603.8,2603.2,2.30485]
[1723787511406,0.465643,2603.7,2603.0,2.305]
[1723787511613,2.3045,2603.6,2603.0,2.305]
[1723787512030,2.4692,2603.5,2602.8,4.79399]
[1723787512186,0.47737,2603.4,2602.8,4.79399]
[1723787512374,2.78205,2603.4,2602.8,4.79399]
[1723787513124,2.30485,2603.2,2602.6,4.79416]
[1723787513278,5.004695,2603.1,2602.4,2.70699246]
[1723787515034,2.30503,2603.0,2602.4,2.70699246]
[1723787515527,2.30503,2603.0,2602.4,0.40146246]
[1723787516631,2.30526,2602.8,2602.4,0.40146246]
[1723787516991,2.4692,2602.7,2602.4,0.40146246]
[1723787517328,2.30526,2602.8,2602.1,4.79461]
[1723787517498,2.30526,2602.8,2602.2,2.30572]
[1723787518216,4.77437,2602.9,2602.2,2.30568]
[1723787518217,2.4692,2602.9,2602.2,2.30568]
[1723787518399,2.4692,2602.9,2602.4,2.30554]
[1723787518605,3.01971015,2602.9,2602.4,2.30554]
[1723787518799,0.55051015,2602.9,2602.4,2.30554]
[1723787519335,0.5004565,2603.0,2602.4,2.30554]
[1723787520001,0.5004565,2603.0,2602.4,4.61103]
[1723787520199,0.5004565,2603.0,2602.4,2.30549]
[1723787521333,0.5004565,2603.0,2602.5,35.0]
[1723787521529,5.004645,2603.1,2602.5,39.57567]
[1723787523631,5.004645,2603.1,2602.5,37.2702]
[1723787523838,7.309665,2603.1,2602.5,37.2702]
[1723787524136,2.40019173,2603.0,2602.5,37.2702]
[1723787524334,2.40019173,2603.0,2602.5,2.2702]
[1723787524509,0.74048367,2602.9,2602.5,2.2702]
[1723787524907,0.74048367,2602.9,2602.5,37.2702]
[1723787525130,0.09516173,2602.8,2602.5,37.2702]
[1723787525650,2.699685,2603.1,2602.5,39.57567]
[1723787525942,0.09516173,2602.7,2602.5,39.57567]
[1723787526094,7.44,2603.2,2602.6,2.30537]
[1723787526298,7.44,2603.2,2602.6,2.30531]
[1723787526559,7.44,2603.2,2602.7,2.30529]
[1723787526723,7.44,2603.2,2602.8,2.3475]
[1723787528015,7.44,2603.2,2602.8,4.6527]
[1723787528649,7.44,2603.2,2603.0,2.30502]
[1723787528802,4.31918524,2603.7,2603.0,2.30502]
[1723787528803,7.44,2603.6,2603.0,2.30502]
[1723787529447,11.16182852,2603.6,2603.0,2.30502]
[1723787529606,2.30459,2603.5,2602.8,6.95784]
[1723787529805,2.30459,2603.5,2602.8,4.65264]
[1723787530315,3.85269438,2603.5,2602.8,4.65264]
[1723787531029,2.30482,2603.3,2602.8,2.3475]
[1723787532843,2.30486,2603.2,2602.8,2.3475]
[1723787533148,2.30513,2602.9,2602.3,2.69143707]
[1723787533743,2.30513,2602.9,2602.3,37.69143707]
[1723787534454,2.30513,2602.9,2602.3,39.99705707]
[1723787536452,12.571018,2603.1,2602.4,2.30554]
[1723787536663,12.11005,2603.1,2602.4,2.30554]
[1723787537154,7.44,2603.1,2602.8,2.3128]
[1723787539370,0.09527201,2603.0,2602.8,2.3128]
[1723787539659,0.09527201,2603.0,2602.9,35.0]
[1723787540162,0.09537561,2603.0,2602.9,35.0]
[1723787540365,14.5016,2603.4,2602.9,35.0]
[1723787540524,0.09537561,2603.3,2602.9,35.0]
[1723787541588,0.09537561,2603.3,2602.9,37.30512]
[1723787542630,0.09537561,2603.3,2603.0,2.2755]
[1723787542834,0.09537561,2603.3,2603.2,2.30485]
[1723787543032,0.09537561,2603.3,2603.2,4.58035]
[1723787543217,7.44,2603.7,2603.2,39.58035]
[1723787543418,2.30426,2603.9,2603.3,2.30476]
[1723787543657,4.35213419,2603.9,2603.3,2.30476]
[1723787544666,4.35213419,2603.9,2603.4,35.0]
[1723787545259,4.35213419,2603.9,2603.3,2.30476]
[1723787545476,6.65644419,2603.9,2603.3,2.30476]
[1723787545778,1.80128853,2603.8,2603.3,37.30476]
[1723787546373,4.35213419,2603.9,2603.3,37.30476]
[1723787546374,6.65644419,2603.9,2603.3,37.30476]
[1723787547584,4.35213419,2603.9,2603.3,37.30476]
[1723787549286,2.30432,2603.8,2603.3,35.0]
[1723787549635,2.2843,2603.8,2603.0,2.4116]
[1723787549888,2.30455,2603.6,2603.0,2.4116]
[1723787550042,2.763435,2603.6,2603.0,37.4116]
[1723787551484,2.30455,2603.6,2603.0,39.71662]
[1723787553078,2.30441,2603.7,2603.1,2.30493]
[1723787553672,2.30441,2603.7,2603.1,37.30493]
[1723787554304,0.09563622,2603.6,2603.1,37.30493]
[1723787555414,0.09563622,2603.6,2603.1,35.0]
[1723787560112,2.3046,2603.5,2603.0,2.4116]
[1723787560471,0.09569636,2603.4,2603.0,2.4116]
[1723787560908,0.09569636,2603.4,2603.0,4.71662]
[1723787561072,0.09569636,2603.4,2603.1,4.76403]
[1723787561276,2.30441,2603.7,2603.1,4.76403]
[1723787561472,0.09569636,2603.3,2603.1,4.76403]
[1723787561679,2.30441,2603.7,2603.1,4.76403]
[1723787561880,0.09568632,2603.2,2603.1,4.76403]
[1723787562086,2.30441,2603.7,2603.1,4.76403]
[1723787562420,0.09568632,2603.6,2603.1,4.76403]
[1723787562629,2.40020632,2603.6,2603.1,2.4591]
[1723787562992,0.09568632,2603.6,2602.9,37.86068944]
[1723787563200,2.30465,2603.5,2602.9,2.86068944]
[1723787563506,0.09585337,2603.4,2602.9,2.86068944]
[1723787564025,0.09585337,2603.4,2602.9,6.49379944]
[1723787565282,0.09585337,2603.4,2603.1,1.328]
[1723787565993,0.09585337,2603.4,2602.9,5.16579944]
[1723787567238,0.09585337,2603.4,2602.9,40.16579944]
[1723787569798,2.40053337,2603.4,2602.9,40.16579944]
[1723787570035,2.40053337,2603.4,2602.9,37.86068944]
[1723787570214,2.40053337,2603.4,2602.9,2.86068944]
[1723787570699,0.09585337,2603.4,2602.9,2.86068944]
[1723787571430,0.09585337,2603.4,2602.9,5.16577944]
[1723787575751,0.09585337,2603.4,2602.9,7.47083944]
[1723787575921,0.09585337,2603.4,2603.0,2.30501]
[1723787576111,12.05473,2603.7,2603.0,2.30501]
[1723787576310,0.09582997,2603.3,2603.0,2.30501]
[1723787576511,12.05473,2603.7,2603.1,2.30494]
[1723787576752,0.09585337,2603.2,2603.1,4.74804]
[1723787576956,7.44,2603.7,2603.1,4.74804]
[1723787577253,0.09585337,2603.6,2603.2,2.30478]
[1723787577409,0.09585337,2603.6,2603.3,2.30474]
[1723787578213,14.48425,2603.9,2603.3,2.30474]
[1723787578410,0.09585337,2603.8,2603.3,2.30474]
[1723787579016,2.30452,2603.6,2603.1,2.4431]
[1723787579224,6.9463,2603.6,2602.9,4.95716458]
[1723787579427,0.09585337,2603.5,2602.9,7.26221458]
[1723787579766,0.09585337,2603.5,2602.9,4.95713458]
[1723787580767,2.40044337,2603.5,2602.9,4.95713458]
[1723787581227,0.09585337,2603.5,2602.9,4.95713458]
[1723787583978,2.4862,2603.3,2602.7,2.30525]
[1723787584137,0.24862,2603.2,2602.7,2.30525]
[1723787584338,0.34449674,2603.2,2602.7,37.30525]
[1723787584541,0.24862,2603.2,2602.7,37.30525]
[1723787584765,0.09578657,2603.1,2602.7,37.30525]
[1723787586886,0.09578657,2603.1,2602.7,35.0]
[1723787587186,0.09578657,2603.1,2602.5,2.79020086]
[1723787587187,2.30505,2603.0,2602.5,2.79020086]
[1723787587387,4.59275,2603.0,2602.4,2.30551]
[1723787587690,0.09573647,2602.9,2602.5,35.0]
[1723787587867,0.09573647,2602.9,2602.6,1.328]
[1723787591871,0.09573647,2602.9,2602.8,1.328]
[1723787592078,2.55348,2603.2,2602.8,1.328]
[1723787592279,0.0956663,2602.9,2602.8,1.328]
[1723787592497,0.503918,2603.1,2602.8,1.328]
[1723787592705,12.04948,2603.4,2603.0,1.328]
[1723787592917,9.74472,2603.4,2603.0,3.7178]
[1723787593122,12.36915928,2603.4,2603.0,1.328]
[1723787593279,12.36915928,2603.4,2603.0,36.328]
[1723787594404,12.36915928,2603.4,2603.0,1.328]
[1723787594601,4.96116162,2603.3,2602.8,3.7178]
[1723787594807,7.25026162,2603.3,2602.9,35.0]
[1723787594988,2.65639162,2603.3,2602.9,35.0]
[1723787597204,2.65639162,2603.3,2602.8,1.328]
[1723787597779,4.96116162,2603.3,2602.8,1.328]
[1723787598107,1.47058816,2603.2,2602.8,1.328]
[1723787599329,0.09562623,2603.1,2602.8,1.328]
[1723787599479,0.09562623,2603.1,2602.6,2.71968267]
[1723787599682,2.4431,2603.0,2602.7,1.328]
[1723787599886,2.53871952,2603.0,2602.7,1.328]
[1723787600701,4.84377952,2603.0,2602.7,1.328]
[1723787603188,0.09561952,2603.0,2602.7,1.328]
[1723787603436,4.60871,2603.2,2602.7,1.328]
[1723787603619,0.87881508,2603.1,2602.7,1.328]
[1723787603933,0.97430767,2603.1,2602.7,1.328]
[1723787604508,0.09549259,2603.1,2602.7,1.328]
[1723787605598,0.09549259,2603.1,2602.7,3.5797]
[1723787605928,0.09549259,2603.1,2602.7,1.328]
[1723787611244,0.09549259,2603.1,2602.8,2.3039]
[1723787611541,4.60964,2603.3,2602.8,2.3039]
[1723787611842,3.48082608,2603.2,2602.7,1.328]
[1723787612349,0.09549591,2603.1,2602.7,1.328]
[1723787613349,2.40045591,2603.1,2602.7,1.328]
[1723787613641,3.23798811,2603.1,2602.7,1.328]
[1723787616005,5.54299811,2603.1,2602.7,1.328]
[1723787616311,3.23798811,2603.1,2602.7,1.328]
[1723787618029,2.30509,2603.0,2602.7,1.328]
[1723787618434,0.0954859,2602.9,2602.7,1.328]
[1723787618943,2.4006159,2602.9,2602.7,1.328]
[1723787619156,2.4006159,2602.9,2602.6,0.40163116]
[1723787619157,2.95492671,2602.9,2602.6,0.40163116]
[1723787619309,2.30526,2602.8,2602.6,0.40163116]
[1723787619511,2.40071583,2602.8,2602.6,0.40163116]
[1723787620846,0.09545583,2602.8,2602.6,0.40163116]
[1723787621205,0.09545583,2602.8,2602.7,1.328]
[1723787621413,2.30497,2603.1,2602.7,1.328]
[1723787621414,2.30497,2603.1,2602.7,3.7001]
[1723787621622,0.09539232,2603.0,2602.7,3.7001]
[1723787623949,2.3048,2603.3,2602.7,3.7001]
[1723787624154,2.3048,2603.3,2602.7,6.00539]
[1723787624155,0.09544915,2602.9,2602.7,6.00539]
[1723787624457,0.09544915,2602.8,2602.7,6.00539]
[1723787624629,2.30486,2603.2,2602.7,6.00539]
[1723787625136,0.09544915,2603.1,2602.7,6.00539]
[1723787625342,4.32095098,2603.3,2602.7,6.00539]
[1723787625575,0.09544915,2603.0,2602.7,6.00539]
[1723787625757,4.32095098,2603.3,2602.7,6.00539]
[1723787625916,0.09544915,2602.9,2602.7,6.00539]
[1723787626118,2.30486,2603.2,2602.7,3.7001]
[1723787626429,3.4809551,2603.2,2602.7,3.7001]
[1723787626643,0.09544915,2603.1,2602.7,3.7001]
[1723787628930,2.40038915,2603.1,2602.7,3.7001]
[1723787629361,4.85988915,2603.1,2602.6,1.72963116]
[1723787629564,0.55935389,2603.0,2602.6,1.72963116]
[1723787629768,2.30513,2602.9,2602.6,1.328]
[1723787630270,0.09549258,2602.8,2602.6,1.328]
[1723787631441,2.30494,2603.1,2602.7,2.3657]
[1723787632327,4.60996,2603.1,2602.7,2.3657]
[1723787632966,6.62701465,2603.1,2602.7,2.3657]
[1723787633385,4.32245108,2603.1,2602.7,2.3657]
[1723787633682,4.32245108,2603.1,2602.5,2.70693619]
[1723787633683,2.30507,2603.0,2602.5,0.40146619]
[1723787633876,2.96788211,2602.9,2602.5,0.40146619]
[1723787635969,0.66275211,2602.9,2602.5,0.40146619]
[1723787636270,6.62747108,2603.1,2602.6,1.328]
[1723787636642,2.30505,2603.0,2602.6,1.328]
[1723787636859,0.48851646,2602.9,2602.6,1.328]
[1723787637064,2.30505,2603.0,2602.6,1.328]
[1723787640006,2.30494,2603.1,2602.7,2.3865]
[1723787641560,4.32227615,2603.1,2602.7,2.3865]
[1723787641802,2.30503,2603.0,2602.7,2.3865]
[1723787642011,2.96776062,2603.0,2602.7,2.3865]
[1723787643567,0.66273062,2603.0,2602.7,2.3865]
[1723787643764,2.30494,2603.1,2602.7,2.3865]
[1723787644171,4.32227615,2603.1,2602.7,2.3865]
[1723787644371,0.0953656,2603.0,2602.7,2.3865]
[1723787644763,0.0953656,2603.0,2602.9,2.31]
[1723787644964,2.01733615,2603.2,2602.9,2.31]
[1723787645162,0.0953656,2603.0,2602.9,2.31]
[1723787645402,2.0176854,2603.2,2602.9,2.31]
[1723787645616,0.0953656,2603.0,2602.9,2.31]
[1723787645906,0.09537564,2603.0,2602.9,2.31]
[1723787646108,5.74091619,2603.2,2602.9,2.31]
[1723787646310,0.09537564,2603.0,2602.9,2.31]
[1723787646605,2.0176854,2603.1,2602.9,2.31]
[1723787646809,0.09537564,2603.0,2602.9,2.31]
[1723787647379,5.74091619,2603.2,2602.9,2.31]
[1723787647603,0.09537564,2603.0,2602.9,2.31]
[1723787648089,5.74091619,2603.2,2602.9,2.31]
[1723787648275,0.09537564,2603.0,2602.9,2.31]
[1723787648688,5.74091619,2603.2,2602.9,2.31]
[1723787648898,0.09537564,2603.0,2602.9,2.31]
[1723787649070,2.0176854,2603.1,2602.9,2.31]
[1723787649270,0.09537564,2603.0,2602.7,2.3061]
[1723787650266,5.7411257,2603.2,2602.7,2.3061]
[1723787650472,2.11327055,2603.1,2602.7,2.3061]
[1723787652005,2.1132444,2603.1,2602.7,2.3061]
[1723787652973,0.09537564,2603.1,2602.7,2.3061]
[1723787653895,2.1132444,2603.1,2602.7,2.3061]
[1723787654099,2.92737192,2603.1,2602.7,2.3061]
[1723787654297,2.92737402,2603.1,2602.7,2.3061]
[1723787654690,5.23231402,2603.1,2602.7,2.3061]
[1723787655072,2.01787086,2603.0,2602.7,2.3061]
[1723787655417,0.09537898,2602.9,2602.7,2.3061]
[1723787655776,5.13693838,2603.1,2602.7,2.3061]
[1723787656091,0.65553092,2603.0,2602.7,2.3061]
[1723787656319,0.09535891,2602.9,2602.7,2.3061]
[1723787656483,0.09535891,2602.9,2602.5,40.19002619]
[1723787658174,2.40047891,2602.9,2602.5,37.88456619]
[1723787658374,2.92370864,2602.9,2602.5,2.88456619]
[1723787658615,7.24695719,2602.9,2602.5,2.88456619]
[1723787658877,2.92370864,2602.9,2602.5,2.4831]
[1723787659070,2.30521,2602.8,2602.5,2.4831]
[1723787659290,0.09532883,2602.7,2602.5,2.4831]
[1723787659574,2.30521,2602.8,2602.4,1.328]